[Event "7th Sharjah Masters 2024"]
[Site "Sharjah"]
[Date "2024.05.16"]
[Round "3.33"]
[White "Pranav Anand"]
[Black "Sargsyan, Shant"]
[Result "1/2-1/2"]
[ECO "B30"]
[WhiteElo "2532"]
[BlackElo "2637"]
[Annotator "TA"]
[PlyCount "56"]
[EventDate "2024.05.13"]
[EventType "swiss"]
[EventCountry "UAE"]
[SourceTitle "playchess.com"]
[Source "ChessBase"]
[SourceQuality "1"]
[TimeControl "5400+30"]

{[%evp 9,56,0,15,13,25,24,33,38,33,10,20,0,6,0,0,0,0,0,0,0,4,0,0,28,2,9,117,134,139,127,137,10,19,-112,-113,-101,-120,-122,-109,-278,-239,-369,-282,-301,-305,-275,-260,-250,-243]} 1. e4 {[%emt 0:01:47]} c5 {[%emt 0:00:30]} 2. Nf3 {[%emt 0:00:30]} Nc6 {[%emt 0:00:48]} 3. Bb5 {[%emt 0:00:00]} e6 {[%emt 0:00:09]} 4. Bxc6 {[%emt 0:00:00]} bxc6 {[%emt 0:00:09]} 5. b3 {[%emt 0:00:00]} f6 {[%emt 0:02:52]} 6. d3 {[%emt 0:00:46]} e5 {[%emt 0:11:31]} 7. Nh4 {[%emt 0:00:26]} Ne7 {[%emt 0:00:16]} 8. f4 {[%emt 0:00:30] White is slightly better.} exf4 {[%emt 0:05:45]} 9. Bxf4 {[%emt 0:00:21]} d5 {[%emt 0:00:08]} 10. O-O {[%emt 0:00:11][%cal Bh1f1,Bf1f6,Bf6f7][%mdl 32]} g5 {[%emt 0:00:30]} 11. Qh5+ {[%emt 0:00:30]} Kd7 {[%emt 0:00:30][%cal Be8d7,Bd7c7,Bc7b6][%mdl 32]} 12. Bd2 {[%emt 0:00:30][%cal Oh5f7] Strongly threatening Qf7!} gxh4 {[%emt 0:00:30]} 13. Rxf6 {[%emt 0:00:30]} Qe8 $1 {[%emt 0:00:30]} 14. Rf7 {[%emt 0:00:30]} Kc7 {[%emt 0:00:30] ...Bg7 would now be deadly.} 15. exd5 {[%emt 0:00:30]} Bg7 $1 {[%emt 0:00:30]} 16. Nc3 $1 {[%emt 0:00:30] Really sharp!} (16. Rxg7 $2 Qxh5 17. Rxe7+ Kd6 $19) 16... Bd4+ {[%emt 0:00:30]} 17. Kh1 {[%emt 0:00:30] Hoping for Re1.} Bg4 {[%emt 0:00:30]} 18. d6+ $16 {[%emt 0:00:30]} (18. Qxg4 Qxf7 19. d6+ Kb6 (19... Kxd6 $2 20. Ne4+ Kc7 21. Ba5+ Kb7 22. Nd6+ Ka6 23. Nxf7 $18) 20. Na4+ (20. dxe7 Qxe7 21. Re1 Qf7 $15) 20... Ka6 21. dxe7 Rhf8 22. exf8=N (22. exf8=R Rxf8 23. h3 Qf1+ 24. Rxf1 Rxf1+ 25. Kh2 Bg1+ 26. Kh1 Be3+ 27. Kh2 Bg1+ 28. Kh1 Be3+ 29. Kh2 Bg1+ $11) 22... Rxf8 $11) (18. Rxe7+ $6 Qxe7 19. Qxg4 Rhg8 20. Qf4+ Kb6 21. Na4+ Ka6 $11) 18... Kb6 {[%emt 0:00:30]} 19. Qxg4 {[%emt 0:00:30]} Qxf7 {[%emt 0:00:30] [#]} 20. dxe7 {[%emt 0:00:30] White is more active.} (20. Na4+ $1 $16 Ka6 21. dxe7) 20... Qxe7 $11 {[%emt 0:00:30]} 21. Na4+ {[%emt 0:00:30]} (21. b4 $1 $11 {keeps the balance.} Rad8 22. Rb1) 21... Kb7 $17 {[%emt 0:00:30]} 22. c3 {[%emt 0:00:30]} (22. Re1 Qf7 23. Nc3 (23. Qxh4 $2 Rae8 $19) 23... Bxc3 24. Bxc3 Rhe8) 22... Rag8 {[%emt 0:00:30]} 23. Qh3 {[%emt 0:00:30]} Bf2 $36 {[%emt 0:00:30][%mdl 2048] And now ...Rg7 would win. White is under strong pressure.} 24. b4 $2 {[%emt 0:00:30] This move loses the game for White.} (24. Qf3 $17 Rf8 25. Bf4) 24... cxb4 $19 {[%emt 0:00:30]} 25. d4 {[%emt 0:00:30]} (25. cxb4 {is a better defense.} Rg6 26. b5) 25... Rf8 {[%emt 0:00:30] aiming for ...Ka8.} 26. Nc5+ {[%emt 0:00:30]} Ka8 {[%emt 0:00:30][%cal Of2e1] ...Be1! is the strong threat.} 27. Nd7 {[%emt 0:00:30] [#]} Be1 $1 {[%emt 0:00:30][%mdl 512]} 28. Nxf8 {[%emt 0:00:30]} (28. Rxe1 $2 {is a self mate.} Qxe1+ 29. Bxe1 Rf1#) 28... Rxf8 {[%emt 0:00:30] Weighted Error Value: White=0.26 (precise) /Black=0.15 (very precise) .  Loses game:     	White=1     	---        Mistake:       	White=3     	Black=1      OK:         	White=7     	Black=7      Best:        	White=2     	Black=7      Strong:       	White=1     	Black=2} 1/2-1/2

[Event "7th Sharjah Masters 2024"]
[Site "Sharjah"]
[Date "2024.05.16"]
[Round "3.34"]
[White "Banusz, Tamas"]
[Black "Gavrilescu, David"]
[Result "1/2-1/2"]
[ECO "D35"]
[WhiteElo "2623"]
[BlackElo "2540"]
[Annotator "TA"]
[PlyCount "78"]
[EventDate "2024.05.13"]
[EventType "swiss"]
[EventCountry "UAE"]
[SourceTitle "playchess.com"]
[Source "ChessBase"]
[SourceQuality "1"]
[TimeControl "5400+30"]

{[%evp 19,78,16,21,21,29,12,29,21,14,18,21,20,19,2,5,0,0,-5,4,0,0,2,6,0,9,0,0,0,4,0,0,14,7,0,0,0,9,0,0,-25,-26,-46,-31,-72,-15,-83,-82,-67,-58,-113,0,-18,-15,-28,0,0,0,-5,0,-10,-9]} 1. c4 {[%emt 0:00:03]} e6 {[%emt 0:00:24]} 2. Nc3 {[%emt 0:00:16]} d5 {[%emt 0:00:37]} 3. d4 {[%emt 0:00:07]} Nf6 {[%emt 0:01:36]} 4. cxd5 {[%emt 0:00:06]} exd5 {[%emt 0:00:09]} 5. Bg5 {[%emt 0:00:13]} Bb4 {[%emt 0:01:17]} 6. e3 {[%emt 0:00:11]} h6 {[%emt 0:00:07]} 7. Bf4 {[%emt 0:00:09] D35: Queen's Gambit Declined: Exchange Variation.} Bd6 {[%emt 0:06:37]} 8. Bxd6 {[%emt 0:04:49]} Qxd6 {[%emt 0:00:07]} 9. Bd3 {[%emt 0:00:37]} O-O {[%emt 0:01:05]} 10. Nge2 {[%emt 0:01:25]} Re8 {[%emt 0:01:56]} 11. Qc2 {[%emt 0:04:23]} a6 {[%emt 0:01:57]} 12. Rd1 $146 {[%emt 0:04:20]} ({Predecessor:} 12. O-O Be6 13. a3 Nbd7 14. b4 c6 15. f3 a5 16. Rab1 axb4 17. axb4 Rad8 18. Rfd1 Rc8 19. Qd2 {1-0 Lahdelma,H (2253)-Crevatin,L (2219) Nordic-ch U20 2020 (4)}) 12... Nbd7 {[%emt 0:06:42]} 13. O-O {[%emt 0:03:38]} b6 {[%emt 0:08:24]} 14. Ng3 {[%emt 0:04:34]} Bb7 {[%emt 0:01:38]} 15. Rfe1 {[%emt 0:03:29]} Rad8 {[%emt 0:05:19]} 16. f3 {[%emt 0:10:12]} c5 {[%emt 0:03:53]} 17. Nf5 {[%emt 0:01:41]} Qf8 {[%emt 0:03:59]} 18. Qf2 {[%emt 0:04:05]} g6 {[%emt 0:07:49]} 19. Qg3 {[%emt 0:02:04]} Re6 {[%emt 0:06:37]} 20. Ne2 {[%emt 0:06:34]} Kh8 {[%emt 0:05:14]} 21. Nh4 $1 {[%emt 0:02:35]} (21. Qc7 Rb8 22. Nh4 Qe8) 21... Qg7 $1 {[%emt 0:01:41]} 22. Nf4 {[%emt 0:08:32]} Ree8 {[%emt 0:00:15]} 23. Bc2 {[%emt 0:11:52]} Nf8 {[%emt 0:04:59]} 24. Nd3 {[%emt 0:00:43]} N6d7 {[%emt 0:01:53]} 25. Qf2 {[%emt 0:03:45]} Ne6 {[%emt 0:04:52]} 26. f4 {[%emt 0:02:17]} cxd4 {[%emt 0:01:56]} 27. f5 {[%emt 0:00:08]} dxe3 {[%emt 0:02:40]} 28. Qxe3 {[%emt 0:01:37]} Nef8 $1 {[%emt 0:02:36]} ({Much worse is} 28... d4 $6 29. Qd2 Ng5 30. Rxe8+ Rxe8 31. fxg6 $16) 29. Qf2 {[%emt 0:03:08]} g5 {[%emt 0:01:47]} 30. Nf3 {[%emt 0:00:05]} Nh7 {[%emt 0:02:18]} 31. h4 {[%emt 0:05:42]} g4 {[%emt 0:01:40]} (31... Qf6 $17) 32. Nd2 {[%emt 0:00:57]} (32. Nd4 $11 {keeps the balance.}) 32... g3 {[%emt 0:03:48]} (32... Nhf6 {simplifies} 33. Rxe8+ Rxe8 34. Nf1 Qf8) 33. Qf4 {[%emt 0:00:09]} Nhf6 {[%emt 0:00:09]} 34. Nf3 {[%emt 0:04:54]} (34. Rxe8+ $15 Rxe8 35. Re1) 34... Ne4 {[%emt 0:02:30]} ({Better is} 34... Re4 $17 35. Qd2 Rc8) 35. Qc7 {[%emt 0:01:11]} (35. Nde5 $5 Nxe5 36. Nxe5 Qxe5 37. Qxh6+ Kg8 38. Bxe4 $17) 35... Ba8 {[%emt 0:01:26]} 36. Nf4 $1 {[%emt 0:01:35]} Ndf6 {[%emt 0:02:05]} ({But not} 36... Qxb2 37. Re3 $15) 37. Qxb6 {[%emt 0:02:15]} Rb8 {[%emt 0:02:43]} 38. Qd4 {[%emt 0:00:13]} a5 {[%emt 0:00:44]} 39. b3 {[%emt 0:01:23]} Kg8 {[%emt 0:00:51]} 1/2-1/2

[Event "7th Sharjah Masters 2024"]
[Site "Sharjah"]
[Date "2024.05.16"]
[Round "3.35"]
[White "Klimkowski, Jan"]
[Black "Idani, Pouya"]
[Result "0-1"]
[ECO "B11"]
[WhiteElo "2518"]
[BlackElo "2605"]
[Annotator "TA"]
[PlyCount "58"]
[EventDate "2024.05.13"]
[EventType "swiss"]
[EventCountry "UAE"]
[SourceTitle "playchess.com"]
[Source "ChessBase"]
[SourceQuality "1"]
[TimeControl "5400+30"]

{[%evp 10,58,27,18,35,29,38,15,35,21,18,14,20,32,39,23,24,25,31,35,28,30,37,0,44,0,23,0,0,-33,-30,-31,-39,-31,-43,-90,-97,-285,-268,-229,-202,-333,-329,-785,-784,-1272,-1250,-1189,-1193,-1127,-347]} 1. e4 {[%emt 0:00:04]} c6 {[%emt 0:00:05]} 2. Nf3 {[%emt 0:00:07]} d5 {[%emt 0:00:05]} 3. Nc3 {[%emt 0:00:08]} dxe4 {[%emt 0:00:22]} 4. Nxe4 {[%emt 0:00:06]} Nf6 {[%emt 0:00:06]} 5. Qe2 {[%emt 0:00:11]} Nxe4 {[%emt 0:00:20]} 6. Qxe4 {[%emt 0:00:07]} Nd7 {[%emt 0:00:02]} 7. d4 {[%emt 0:00:20]} Nf6 {[%emt 0:00:13]} 8. Qd3 {[%emt 0:00:14]} g6 {[%emt 0:00:27] The position is equal.} 9. Be2 {[%emt 0:00:18]} Bg7 {[%emt 0:00:32]} 10. O-O {[%emt 0:00:24]} O-O {[%emt 0:00:13]} 11. Re1 {[%emt 0:01:22]} Qc7 {[%emt 0:03:15]} 12. a4 {[%emt 0:08:54]} Bf5 {[%emt 0:03:28]} 13. Qb3 {[%emt 0:01:16]} c5 {[%emt 0:04:38]} 14. c3 {[%emt 0:05:44]} Be4 {[%emt 0:12:25]} 15. dxc5 {[%emt 0:04:51]} Qxc5 {[%emt 0:00:23]} 16. Bf4 {[%emt 0:06:30]} a6 {[%emt 0:04:44]} 17. Ne5 {[%emt 0:13:40]} Rac8 {[%emt 0:14:08]} 18. Rad1 {[%emt 0:09:00]} Nd5 {[%emt 0:17:56]} 19. Bg3 {[%emt 0:26:02]} (19. Qxb7 $2 Nxc3 (19... Nxf4 20. Qxe4 Qxe5 21. Qxe5 $17) 20. Nd7 Bxb7 $19) (19. Nd7 $5 Qc6 $8 20. Ne5 $11 (20. Nxf8 $2 Nxf4 21. Bb5 axb5 $19)) 19... Bxe5 {[%emt 0:00:07]} 20. Bxe5 {[%emt 0:00:06]} Ne3 {[%emt 0:00:07] Repels Bf1} 21. fxe3 {[%emt 0:00:56]} Qxe5 $40 {[%emt 0:00:06][%mdl 128] Black has some attack.} 22. Rd4 {[%emt 0:00:48] [#]} (22. Qb6 $15) 22... Bc2 $1 $17 {[%emt 0:02:42]} 23. Qxb7 $2 {[%emt 0:03:40] Loses the game.} (23. Qxc2 $2 {is the wrong capture.} Qxe3+ 24. Kh1 Qxd4 $19) (23. Qd5 $17 Qxd5 (23... Qxe3+ 24. Kf1 $17) 24. Rxd5) 23... Qxe3+ $19 {[%emt 0:00:10]} 24. Kf1 {[%emt 0:00:15] [#]} Rc5 $1 {[%emt 0:04:02] Threatens to win with ...Re5.} 25. g4 {[%emt 0:10:18]} (25. Qxa6 $142 Re5 26. b3) 25... e5 {[%emt 0:02:15]} 26. Rb4 {[%emt 0:01:06]} (26. Bf3 Bd3+ (26... exd4 27. Rxe3 dxe3 28. Qxa6 $11) 27. Rxd3 Qxd3+ 28. Kg1) 26... a5 {[%emt 0:01:48] Black is clearly winning.} 27. Rb5 {[%emt 0:00:33]} Be4 {[%emt 0:00:41]} 28. Qxe4 {[%emt 0:00:12]} Qxe4 {[%emt 0:00:06]} 29. Rxc5 {[%emt 0:00:02]} Qh1+ {[%emt 0:00:24] Weighted Error Value: White=0.68/Black=0.05 (flawless) .  Loses game:     	White=1     	---        Mistake:       	White=3     	---        Inaccurate:     	White=4     	Black=1      OK:         	White=6     	Black=9      Best:        	White=1     	Black=3      Strong:       	---       	Black=2} 0-1

[Event "7th Sharjah Masters 2024"]
[Site "Sharjah"]
[Date "2024.05.16"]
[Round "3.36"]
[White "Yilmazyerli, Mert"]
[Black "Jumabayev, Rinat"]
[Result "1/2-1/2"]
[ECO "E69"]
[WhiteElo "2522"]
[BlackElo "2597"]
[Annotator "TA"]
[PlyCount "76"]
[EventDate "2024.05.13"]
[EventType "swiss"]
[EventCountry "UAE"]
[SourceTitle "playchess.com"]
[Source "ChessBase"]
[SourceQuality "1"]
[TimeControl "5400+30"]

{[%evp 27,76,37,37,5,64,69,75,0,37,17,10,7,15,0,0,0,0,0,0,0,0,0,0,0,0,0,0,0,4,0,0,0,0,0,0,0,0,0,0,-8,-16,-8,0,0,0,-8,0,0,669,-29,-24]} 1. d4 {[%emt 0:00:04]} Nf6 {[%emt 0:00:05]} 2. c4 {[%emt 0:00:07]} g6 {[%emt 0:00:07]} 3. Nf3 {[%emt 0:00:09]} Bg7 {[%emt 0:00:05]} 4. g3 {[%emt 0:00:05]} d6 {[%emt 0:00:19]} 5. Bg2 {[%emt 0:00:18]} O-O {[%emt 0:00:11]} 6. Nc3 {[%emt 0:01:08]} Nbd7 {[%emt 0:00:08]} 7. O-O {[%emt 0:00:07]} e5 {[%emt 0:00:05]} 8. h3 {[%emt 0:00:11]} Re8 {[%emt 0:00:28]} 9. e4 {[%emt 0:00:05]} exd4 {[%emt 0:04:49]} 10. Nxd4 {[%emt 0:00:49]} c6 {[%emt 0:00:06]} 11. Rb1 {[%emt 0:05:32]} a5 {[%emt 0:23:19]} 12. Re1 {[%emt 0:00:40]} Nc5 {[%emt 0:01:25]} 13. b3 {[%emt 0:01:19]} Bd7 {[%emt 0:12:26]} 14. Bf4 {[%emt 0:07:26]} Qb6 {[%emt 0:03:06][%cal Of6e4]} 15. Be3 {[%emt 0:13:29]} Rad8 {[%emt 0:03:06]} (15... Nfxe4 $2 16. Nxe4 Nxe4 17. Nf5 $18) ({Better is} 15... Qa6 $11) 16. Qc2 $14 {[%emt 0:09:30]} Qc7 {[%emt 0:03:07]} 17. f4 {[%emt 0:07:47]} ({White should play} 17. g4 $16) 17... h5 {[%emt 0:00:29]} 18. Rbd1 {[%emt 0:06:19]} Qc8 {[%emt 0:11:17]} 19. Kh2 {[%emt 0:05:52]} b5 {[%emt 0:09:00]} 20. cxb5 {[%emt 0:10:35]} cxb5 {[%emt 0:02:35]} 21. Ndxb5 {[%emt 0:16:39]} Ncxe4 {[%emt 0:03:29] [#] ...Bxb5 would now be deadly.} 22. Rc1 $1 {[%emt 0:00:41][%cal Rc3e4,Bd1c1,Bc1c2,Bc2c5,Bc5a5][%mdl 32]} d5 {[%emt 0:17:05]} 23. Nxe4 {[%emt 0:04:13]} Qxc2 {[%emt 0:00:16]} (23... Nxe4 24. Nc7 $16) 24. Nxf6+ {[%emt 0:00:55]} Bxf6 {[%emt 0:00:01]} 25. Rxc2 {[%emt 0:00:05]} Bxb5 {[%emt 0:00:03]} 26. Rc5 {[%emt 0:03:20]} d4 {[%emt 0:05:16]} 27. Bd2 {[%emt 0:00:02]} Bd3 {[%emt 0:00:10]} 28. Rxa5 {[%emt 0:00:18] And now Rxe8+ would win.} Kg7 {[%emt 0:00:05]} 29. Rd5 {[%emt 0:03:02]} Rxe1 {[%emt 0:01:21]} 30. Bxe1 {[%emt 0:00:04] Black must now prevent Rxd8.} Re8 {[%emt 0:00:06]} 31. Bf2 $1 {[%emt 0:00:10]} Re2 {[%emt 0:00:03][%csl LRa2,LRf2]} 32. Kg1 {[%emt 0:00:12] Bf1 is the strong threat.} (32. Bxd4 $2 {perishes.} Be4 (32... Rxa2 $2 33. Bxf6+ Kxf6 34. Rxd3 $18) (32... Rxg2+ $2 33. Kxg2 Be4+ 34. Kf2 $19) 33. Bxf6+ Kxf6 $19) 32... Rxa2 {[%emt 0:00:14]} 33. Bf3 {[%emt 0:00:30]} (33. Bxd4 $2 {is the wrong capture.} Rxg2+ 34. Kxg2 Be4+ 35. Kf2 Bxd5 $19) 33... Ra1+ {[%emt 0:01:35]} 34. Kh2 {[%emt 0:00:07]} Ra2 {[%emt 0:00:35]} (34... Rf1 $5 35. Kg2 $8 Rb1 $11) 35. Kg1 {[%emt 0:00:04]} Ra1+ {[%emt 0:00:25]} 36. Kh2 {[%emt 0:00:04]} Ra2 {[%emt 0:00:28]} (36... Rf1 $5 37. Kg2 $8 Rb1 $11) 37. Kg1 {[%emt 0:00:04]} Re2 $2 {[%emt 0:01:35][%mdl 8192] [#]} 38. Bg2 $2 {[%emt 0:07:28]} (38. Bxd4 Bxd4+ 39. Rxd4 Re1+ 40. Kf2 Rf1+ 41. Kg2 Ba6 $18) ({Only move:} 38. Bxe2 $18 Bxe2 39. Bxd4 Bxd4+ 40. Rxd4) 38... Bf5 {Weighted Error Value: White=0.24 (precise) /Black=0.34.  Loses game:     	---       	Black=1      Missed win:     	White=1     	---        Mistake:       	White=1     	Black=1      Inaccurate:     	---       	Black=1      OK:         	White=8     	Black=10     Best:        	White=2     	---        Strong:       	White=2     	---} 1/2-1/2

[Event "7th Sharjah Masters 2024"]
[Site "Sharjah"]
[Date "2024.05.16"]
[Round "3.37"]
[White "Sethuraman, S.P."]
[Black "Raja Rithvik R"]
[Result "1/2-1/2"]
[ECO "C54"]
[WhiteElo "2593"]
[BlackElo "2524"]
[Annotator "TA"]
[PlyCount "122"]
[EventDate "2024.05.13"]
[EventType "swiss"]
[EventCountry "UAE"]
[SourceTitle "playchess.com"]
[Source "ChessBase"]
[SourceQuality "1"]
[TimeControl "5400+30"]

{[%evp 49,122,0,0,0,0,0,0,0,0,0,0,0,30,-27,0,-73,-12,-66,-13,-17,-8,-28,-6,-8,-4,-11,0,-22,-30,-29,47,47,48,56,93,89,93,91,93,73,88,81,94,70,73,67,73,66,66,66,66,66,66,65,66,51,58,48,66,13,13,0,0,0,0,0,0,0,0,0,0,0,8,8,8]} 1. e4 {[%emt 0:00:10]} e5 {[%emt 0:03:29]} 2. Nf3 {[%emt 0:00:09]} Nc6 {[%emt 0:00:04]} 3. Bc4 {[%emt 0:00:08]} Bc5 {[%emt 0:00:09]} 4. d3 {[%emt 0:00:09]} Nf6 {[%emt 0:00:06]} 5. Bg5 {[%emt 0:00:08]} d6 {[%emt 0:03:58]} 6. c3 {[%emt 0:00:15]} h6 {[%emt 0:00:41]} 7. Bh4 {[%emt 0:00:06]} g5 {[%emt 0:00:22]} 8. Bg3 {[%emt 0:00:26]} a5 {[%emt 0:01:26] C54: Giuoco Piano: 4 c3 Nf6, main lines with 5 d4 and 5 d3.} 9. Nbd2 {[%emt 0:01:01]} O-O {[%emt 0:04:01]} 10. h4 {[%emt 0:07:09]} g4 {[%emt 0:00:24]} 11. Nh2 {[%emt 0:00:07]} h5 $146 {[%emt 0:04:53]} ({Predecessor:} 11... Kg7 12. Qe2 Ne7 13. h5 Nxh5 14. Nxg4 Nxg3 15. fxg3 Ng8 16. Rh4 b5 17. Bd5 Ra6 {1-0 Gabrielian,A (2464)-Pichot,A (2625) Titled Tuesday intern op 22nd Feb Early blitz 2022 (7)}) 12. Qe2 {[%emt 0:00:59]} Ne7 {[%emt 0:13:41]} 13. f4 {[%emt 0:36:17]} Ng6 {[%emt 0:06:30]} 14. f5 {[%emt 0:04:33]} Nf4 {[%emt 0:06:05]} 15. Bxf4 {[%emt 0:00:08]} exf4 {[%emt 0:00:02]} 16. d4 {[%emt 0:00:02]} Bb6 {[%emt 0:16:46]} 17. O-O-O {[%emt 0:01:22]} d5 {[%emt 0:01:05]} 18. Qf1 {[%emt 0:13:53]} Nxe4 {[%emt 0:12:27]} 19. Nxe4 {[%emt 0:02:32]} dxe4 {[%emt 0:00:04]} 20. Qxf4 {[%emt 0:00:06]} Qf6 {[%emt 0:00:03]} 21. Nf1 {[%emt 0:10:43]} Qxf5 {[%emt 0:02:08]} 22. Qh6 {[%emt 0:00:27]} Qh7 {[%emt 0:00:23]} 23. Qg5+ {[%emt 0:00:06]} Kh8 {[%emt 0:00:06]} 24. Ng3 {[%emt 0:00:46]} f6 {[%emt 0:01:57] [#]} 25. Qf4 $2 {[%emt 0:13:07]} (25. Qxh5 Qxh5 26. Nxh5 c6 $15) (25. Rdf1 $1 $18 fxg5 (25... Be6 $2 26. Rxf6 Bxc4 27. Rh6 $18) 26. Rxf8+ Kg7 27. Rf7+) 25... c6 $1 $11 {[%emt 0:01:07]} (25... f5 $2 26. Nxe4 Bd7 27. Ng5 $18) 26. Nxe4 {[%emt 0:01:29]} Bc7 {[%emt 0:00:46]} 27. Qd2 {[%emt 0:02:48]} Bf5 {[%emt 0:04:46]} 28. Nc5 {[%emt 0:00:04]} b6 {[%emt 0:09:24]} 29. Ne6 {[%emt 0:00:05]} Bxe6 $1 {[%emt 0:00:05]} 30. Bxe6 {[%emt 0:00:02]} f5 {[%emt 0:00:46]} 31. Rde1 {[%emt 0:01:41]} (31. d5 $142) 31... Rf6 {[%emt 0:01:36]} 32. Rhf1 {[%emt 0:02:26] [#]} (32. Qg5 $11 Raf8 33. Bb3) 32... Raf8 {[%emt 0:00:54]} (32... Bg3 $1 $17 {[%cal Of5f4] Threatens to win with ...f4!} 33. d5 (33. Qg5 $2 Raf8 $19) 33... Bxe1 34. Rxe1 cxd5 35. Bxd5 Raf8) 33. d5 {[%emt 0:01:10]} (33. Bc4 $11) 33... cxd5 {[%emt 0:01:50]} ({Black should play} 33... Bg3 $1 $15 34. d6 (34. dxc6 $2 f4 $19) 34... Bxh4) 34. Bxd5 $11 {[%emt 0:00:13]} Qh6 {[%emt 0:02:10]} 35. Re7 {[%emt 0:00:51]} Qxd2+ {[%emt 0:00:41]} 36. Kxd2 {[%emt 0:00:03]} Bg3 {[%emt 0:00:16]} 37. Kc2 {[%emt 0:00:46]} Rd6 {[%emt 0:00:58]} (37... Bxh4 38. Rh1 Rd6 39. Rxh4) 38. c4 {[%emt 0:01:42]} Bxh4 {[%emt 0:00:43]} 39. Re5 {[%emt 0:00:12]} Bg5 {[%emt 0:02:26]} (39... Kh7 $11 40. Rfxf5 Rxf5 41. Rxf5 Kh6) 40. Rfxf5 $14 {[%emt 0:00:20]} Rxf5 {[%emt 0:00:06]} 41. Rxf5 {[%emt 0:00:07]} Rg6 {[%emt 0:00:11]} 42. Bf7 {[%emt 0:00:14]} Rg7 {[%emt 0:00:31]} 43. Bxh5 {[%emt 0:00:06]} Be3 {[%emt 0:01:01]} 44. Re5 {[%emt 0:02:18]} Bc5 {[%emt 0:00:37]} 45. a3 {[%emt 0:00:16]} Kh7 {[%emt 0:00:33]} 46. Re4 {[%emt 0:00:06]} g3 {[%emt 0:00:07]} 47. Bf3 {[%emt 0:00:27]} Kg6 {[%emt 0:00:48]} 48. Kc3 {[%emt 0:00:42]} Kf6 {[%emt 0:00:41]} 49. b4 {[%emt 0:00:12]} axb4+ {[%emt 0:00:01]} 50. axb4 {[%emt 0:00:04]} Bf2 {[%emt 0:00:09]} 51. Kb3 {[%emt 0:00:16]} Re7 {[%emt 0:00:55]} 52. Rg4 {[%emt 0:00:30]} Re1 {[%emt 0:00:49]} 53. Ka4 {[%emt 0:00:24]} Rb1 {[%emt 0:00:22]} 54. Kb5 {[%emt 0:01:19]} ({Better is} 54. Rh4 $14) 54... Bc5 $11 {[%emt 0:00:33]} 55. Rg6+ {[%emt 0:01:31]} Ke5 {[%emt 0:00:35]} 56. Rg5+ {[%emt 0:00:25]} Kd4 {[%emt 0:00:10]} 57. Rg4+ {[%emt 0:00:20]} (57. Rxg3 Rxb4+ 58. Kc6 Rxc4) 57... Ke5 {[%emt 0:00:49]} 58. Rg5+ {[%emt 0:00:05]} Kd4 {[%emt 0:00:03]} 59. Kc6 {[%emt 0:00:24]} Rxb4 {[%emt 0:00:05]} 60. Rxg3 {[%emt 0:00:22]} Rxc4 {[%emt 0:00:30]} 61. Rg4+ {[%emt 0:00:06]} Kc3 $1 {[%emt 0:00:05]} 1/2-1/2